bitfinex-derivatives/quotes_BTCF0:USTF0_20240824
["timestamp","ask_amount","ask_price","bid_price","bid_amount"]
[1724538155917,0.00784255,63949.0,63939.0,0.0012]
[1724538155918,0.078163,63940.0,63939.0,0.0012]
[1724538156109,0.078165,63938.0,63937.0,4e-05]
[1724538158422,0.078176,63929.0,63921.0,0.04671163]
[1724538158723,0.4692,63937.0,63914.0,0.04671163]
[1724538158724,0.3608,63931.0,63914.0,0.04671163]
[1724538158923,0.3608,63931.0,63910.0,0.3608]
[1724538158924,0.078197,63912.0,63910.0,0.3608]
[1724538159127,0.078197,63912.0,63910.0,0.51658792]
[1724538161728,0.07842601,63917.0,63910.0,0.51658792]
[1724538161931,0.07842601,63917.0,63916.0,0.3608]
[1724538162131,0.07842601,63917.0,63916.0,0.51658792]
[1724538163124,0.00023401,63917.0,63916.0,0.51658792]
[1724538166629,0.00027401,63917.0,63916.0,0.51658792]
[1724538167527,0.00027401,63917.0,63916.0,0.52889615]
[1724538168326,0.00027401,63917.0,63916.0,0.60708815]
[1724538168526,0.00027401,63917.0,63916.0,0.59477992]
[1724538168833,0.00027401,63917.0,63916.0,0.51658792]
[1724538169532,0.07846501,63917.0,63916.0,0.51658792]
[1724538172331,0.07846501,63917.0,63903.0,0.32462]
[1724538172332,0.078198,63912.0,63904.0,0.12721163]
[1724538172628,0.078198,63912.0,63908.0,0.51658792]
[1724538173024,4e-05,63909.0,63908.0,0.51658792]
[1724538175334,0.00023401,63917.0,63908.0,0.51658792]
[1724538175335,0.07842601,63917.0,63908.0,0.51658792]
[1724538175525,0.00023401,63917.0,63910.0,0.078199]
[1724538175726,0.00023401,63917.0,63910.0,0.23398692]
[1724538175930,0.07842601,63917.0,63915.0,0.3608]
[1724538176124,0.07842601,63917.0,63916.0,4e-05]
[1724538176532,0.07842601,63917.0,63916.0,0.15582792]
[1724538177334,0.07842601,63917.0,63916.0,4e-05]
[1724538177939,1.02597801,63917.0,63916.0,4e-05]
[1724538178333,1.10217801,63917.0,63916.0,4e-05]
[1724538180237,1.46297801,63917.0,63916.0,4e-05]
[1724538180438,1.10217801,63917.0,63916.0,4e-05]
[1724538180632,1.06297801,63917.0,63916.0,4e-05]
[1724538182735,0.70217801,63917.0,63916.0,4e-05]
[1724538182939,1.06297801,63917.0,63916.0,4e-05]
[1724538184239,0.59361801,63917.0,63916.0,4e-05]
[1724538185834,1.07083012,63917.0,63916.0,4e-05]
[1724538186942,0.60147012,63917.0,63916.0,4e-05]
[1724538187146,1.07083012,63917.0,63916.0,4e-05]
[1724538188435,1.16448212,63917.0,63916.0,4e-05]
[1724538188650,0.69512212,63917.0,63916.0,4e-05]
[1724538188852,1.31444612,63917.0,63905.0,0.00023464]
[1724538189142,0.24,63906.0,63905.0,0.00023464]
[1724538189542,0.24004,63906.0,63905.0,0.00023464]
[1724538189949,0.318244,63906.0,63905.0,0.00023464]
[1724538192346,0.078244,63906.0,63905.0,0.00023464]
[1724538194650,0.09028549,63906.0,63905.0,0.00023464]
[1724538196140,0.16848949,63906.0,63905.0,0.00023464]
[1724538197554,0.09028549,63906.0,63905.0,0.00023464]
[1724538197750,0.13476,63918.0,63905.0,0.00023464]
[1724538197751,0.00023401,63917.0,63905.0,0.51682256]
[1724538198068,0.00023401,63917.0,63912.0,0.3608]
[1724538198352,0.00023401,63917.0,63916.0,0.078192]
[1724538198654,0.00023401,63917.0,63916.0,0.62518792]
[1724538198864,0.00023401,63917.0,63916.0,0.15582792]
[1724538199245,0.00023401,63917.0,63916.0,0.70337992]
[1724538199649,0.012314,63928.0,63916.0,1.10337992]
[1724538199850,0.012314,63928.0,63923.0,0.3608]
[1724538199851,0.078181,63925.0,63923.0,0.3608]
[1724538200055,0.078181,63925.0,63923.0,0.51658792]
[1724538202652,8e-05,63928.0,63923.0,0.51658792]
[1724538203456,8e-05,63928.0,63927.0,4e-05]
[1724538204966,0.078257,63928.0,63927.0,4e-05]
[1724538208066,0.078188,63919.0,63918.0,0.00023464]
[1724538208759,0.078228,63919.0,63918.0,0.00023464]
[1724538208955,0.078228,63919.0,63918.0,0.15602256]
[1724538210765,0.078228,63919.0,63918.0,0.51682256]
[1724538212461,4e-05,63919.0,63918.0,0.51682256]
[1724538214365,0.078228,63919.0,63918.0,0.36103464]
[1724538214766,0.078228,63919.0,63918.0,0.00023464]
[1724538219572,0.078199,63910.0,63909.0,0.3608]
[1724538219777,0.078199,63910.0,63909.0,0.51658792]
[1724538220371,0.24004,63910.0,63902.0,0.3608]
[1724538220575,0.078206,63905.0,63902.0,0.51658792]
[1724538220775,0.3608,63907.0,63902.0,0.51658792]
[1724538220776,0.078207,63904.0,63902.0,0.51658792]
[1724538221080,4e-05,63903.0,63902.0,0.51658792]
[1724538222868,0.01195691,63903.0,63902.0,0.51658792]
[1724538223774,0.01195691,63903.0,63902.0,0.15578792]
[1724538225068,4e-05,63903.0,63902.0,0.15578792]
[1724538226075,0.078248,63903.0,63902.0,0.15578792]
[1724538228768,0.07821,63901.0,63900.0,0.00023464]
[1724538229481,0.07825,63901.0,63900.0,0.00023464]
[1724538232482,0.43905,63901.0,63900.0,0.00023464]
[1724538235971,0.07825,63901.0,63900.0,0.00023464]
[1724538237085,0.43905,63901.0,63900.0,0.00023464]
[1724538239880,0.59547,63901.0,63900.0,0.00023464]
[1724538240077,0.318219,63894.0,63889.0,0.3608]
[1724538240282,0.318219,63894.0,63883.0,0.3608]
[1724538240783,0.318259,63894.0,63883.0,0.3608]
[1724538241176,0.078226,63888.0,63887.0,0.00023464]
[1724538241485,0.679026,63888.0,63887.0,0.00023464]
[1724538241981,0.679066,63888.0,63887.0,0.00023464]
[1724538242187,0.67919838,63888.0,63887.0,0.00023464]
[1724538242483,0.67919838,63888.0,63880.0,0.1511]
[1724538242484,0.60097238,63888.0,63880.0,0.1511]
[1724538242784,0.60097238,63888.0,63875.0,0.0743]
[1724538242785,0.24,63881.0,63875.0,0.0743]
[1724538242978,0.00011503,63880.0,63875.0,0.23008792]
[1724538243380,0.00011503,63880.0,63875.0,0.15578792]
[1724538243688,0.078242,63875.0,63874.0,0.3608]
[1724538243890,0.078242,63875.0,63874.0,0.51658792]
[1724538244386,0.078242,63875.0,63862.0,0.03971163]
[1724538244387,0.078246,63872.0,63862.0,0.03971163]
[1724538244582,0.62402,63874.0,63849.0,0.0524258]
[1724538244882,0.24,63850.0,63849.0,0.0524258]
[1724538245079,0.24,63850.0,63829.0,0.158098]
[1724538245283,0.24,63855.0,63831.0,0.31118792]
[1724538245477,0.24,63855.0,63835.0,0.078291]
[1724538245681,0.00023482,63849.0,63844.0,0.3608]
[1724538245882,0.00023482,63849.0,63845.0,0.0763]
[1724538246081,0.00011545,63848.0,63846.0,0.0751]
[1724538246482,0.00011545,63848.0,63846.0,0.23088792]
[1724538247781,0.00011545,63848.0,63846.0,0.70076792]
[1724538248585,0.00011545,63848.0,63846.0,0.23088792]
[1724538249092,4e-05,63847.0,63846.0,0.23088792]
[1724538253991,4e-05,63847.0,63845.0,0.00112]
[1724538254193,4e-05,63847.0,63838.0,0.0753]
[1724538254397,4e-05,63847.0,63838.0,0.23108792]
[1724538254398,0.3608,63843.0,63838.0,0.23108792]
[1724538254890,4e-05,63839.0,63838.0,0.23108792]
[1724538255085,0.00015344,63839.0,63838.0,0.15578792]
[1724538257982,0.318283,63842.0,63838.0,0.15578792]
[1724538258385,0.318283,63842.0,63838.0,0.15582792]
[1724538258992,0.00015803,63841.0,63838.0,0.15582792]
[1724538261989,0.00015803,63841.0,63840.0,0.3608]
[1724538262193,0.00023482,63849.0,63840.0,0.6008]
[1724538262490,0.3608,63862.0,63848.0,0.3608]
[1724538262695,0.3608,63862.0,63855.0,0.3608]
[1724538262891,0.3608,63862.0,63856.0,0.0737]
[1724538263299,0.078262,63859.0,63856.0,0.1509851]
[1724538263792,6.37e-05,63861.0,63856.0,0.0772851]
[1724538263793,0.078263,63858.0,63856.0,0.0772851]
[1724538263994,6.37e-05,63861.0,63856.0,0.0772851]
[1724538266408,6.37e-05,63861.0,63860.0,4e-05]
[1724538266794,6.37e-05,63861.0,63860.0,0.0773251]
[1724538268393,6.37e-05,63861.0,63860.0,4e-05]
[1724538269418,0.4698237,63861.0,63853.0,0.00023482]
[1724538269594,0.24,63854.0,63853.0,0.00023482]
[1724538270099,0.318308,63854.0,63853.0,0.00023482]
[1724538270301,0.3183717,63854.0,63853.0,0.00023482]
[1724538270512,0.07828,63844.0,63838.0,0.36084]
[1724538270805,0.078285,63840.0,63838.0,0.0773251]
[1724538271201,4e-05,63839.0,63838.0,0.0773251]
[1724538274506,4e-05,63839.0,63838.0,4e-05]
[1724538280020,0.078326,63839.0,63838.0,4e-05]
[1724538280313,0.439126,63839.0,63838.0,4e-05]
[1724538280510,0.36084,63839.0,63838.0,0.0773251]
[1724538280812,4e-05,63839.0,63838.0,0.4381251]
[1724538281911,4e-05,63839.0,63838.0,0.9080451]
[1724538282811,4e-05,63839.0,63838.0,0.9863321]
[1724538283510,4e-05,63839.0,63838.0,0.9080451]
[1724538285516,4e-05,63839.0,63838.0,0.4381251]
[1724538286416,4e-05,63839.0,63838.0,0.9080451]
[1724538286610,4e-05,63839.0,63838.0,0.4381251]
[1724538288219,0.01226523,63839.0,63838.0,0.4381251]
[1724538288924,0.09055123,63839.0,63838.0,4e-05]
[1724538289617,0.09055123,63839.0,63838.0,0.0773251]
[1724538290706,0.09055123,63839.0,63838.0,4e-05]
[1724538296709,0.09055123,63839.0,63838.0,0.0773251]
[1724538300616,0.09055123,63839.0,63838.0,0.1556121]
[1724538300617,4e-05,63839.0,63838.0,0.1556121]
[1724538301116,4e-05,63839.0,63838.0,0.0773251]
[1724538301631,0.078326,63839.0,63838.0,4e-05]
[1724538301819,0.078326,63839.0,63838.0,0.0773251]
[1724538307423,4e-05,63839.0,63838.0,0.0773251]
[1724538308628,0.24004,63839.0,63838.0,0.0773251]
[1724538309130,0.318326,63839.0,63838.0,4e-05]
[1724538310824,0.393026,63839.0,63838.0,4e-05]
[1724538311026,0.48681673,63839.0,63838.0,4e-05]
[1724538311332,0.393026,63839.0,63838.0,4e-05]
[1724538313132,0.318326,63839.0,63838.0,4e-05]
[1724538313334,0.078326,63839.0,63838.0,4e-05]
[1724538314532,0.318326,63839.0,63838.0,4e-05]
[1724538315032,0.32606663,63839.0,63838.0,4e-05]
[1724538316529,0.318326,63839.0,63838.0,4e-05]
[1724538316930,0.41215927,63839.0,63838.0,4e-05]
[1724538317129,0.41215927,63839.0,63838.0,0.0773251]
[1724538317130,0.078326,63839.0,63838.0,0.0773251]
[1724538319938,4e-05,63839.0,63838.0,0.5164121]
[1724538320133,4e-05,63839.0,63838.0,0.54088862]
[1724538320531,4e-05,63839.0,63838.0,0.75668755]
[1724538321537,4e-05,63839.0,63838.0,0.81924894]
[1724538321936,4e-05,63839.0,63838.0,0.74096194]
[1724538322134,0.318326,63839.0,63838.0,0.50068649]
[1724538322337,0.318326,63839.0,63838.0,0.4381251]
[1724538322545,0.33058335,63839.0,63838.0,0.4381251]
[1724538322943,0.33158335,63839.0,63838.0,0.4501251]
[1724538323135,0.33158335,63839.0,63838.0,0.0893251]
[1724538323444,0.33158335,63839.0,63838.0,0.01204]
[1724538323445,0.69238335,63839.0,63838.0,0.01204]
[1724538325444,0.78621662,63839.0,63838.0,0.01204]
[1724538326461,0.78721662,63839.0,63838.0,0.01204]
[1724538327145,0.78621662,63839.0,63838.0,4e-05]
[1724538327342,0.69338335,63839.0,63838.0,0.01204]
[1724538327542,0.77173305,63839.0,63838.0,0.01204]
[1724538327750,0.53173305,63839.0,63838.0,0.01204]
[1724538328442,0.078295,63832.0,63814.0,0.06256139]
[1724538328638,0.24,63818.0,63814.0,0.1525851]
[1724538328840,6.37e-05,63817.0,63814.0,0.1525851]
[1724538329149,0.0783767,63817.0,63814.0,0.1525851]
[1724538329347,0.078315,63816.0,63814.0,0.1525851]
[1724538329837,0.078315,63816.0,63814.0,0.1625851]
[1724538330033,0.078315,63816.0,63814.0,0.0853]
[1724538330233,0.078317,63814.0,63813.0,0.00014717]
[1724538331647,0.079317,63814.0,63813.0,0.00014717]
[1724538331951,0.001,63814.0,63813.0,0.07743227]
[1724538332647,0.002,63814.0,63813.0,0.07743227]
[1724538332844,0.3608,63830.0,63819.0,0.07831]
[1724538333039,0.3608,63830.0,63820.0,0.0725]
[1724538333239,0.3608,63836.0,63820.0,0.770088]
[1724538333444,0.3608,63836.0,63825.0,0.439103]
[1724538333841,0.09353372,63846.0,63832.0,0.3608]
[1724538334048,0.0749,63847.0,63835.0,0.07829]
[1724538334049,0.01229614,63843.0,63835.0,0.07829]
[1724538334238,0.153177,63847.0,63836.0,0.1482]
[1724538334443,0.00023501,63843.0,63836.0,0.2254851]
[1724538334836,0.24023501,63843.0,63836.0,0.2254851]
[1724538336140,0.00023501,63843.0,63836.0,0.2254851]
[1724538336341,0.00023501,63843.0,63837.0,0.078288]
[1724538336541,0.00023501,63843.0,63838.0,0.46992]
[1724538336847,0.3608,63853.0,63842.0,0.078282]
[1724538337046,0.3608,63853.0,63846.0,0.3608]
[1724538337543,0.3608,63853.0,63846.0,0.43785009]
[1724538338335,0.3618,63853.0,63846.0,0.43785009]
[1724538339045,0.3628,63853.0,63846.0,0.43885009]
[1724538339941,0.24,63850.0,63846.0,0.43885009]
[1724538340142,0.24,63850.0,63846.0,0.07805009]
[1724538340343,0.24,63850.0,63846.0,0.07905009]
[1724538341253,0.241,63850.0,63846.0,0.07905009]
[1724538341956,0.24,63850.0,63846.0,0.07905009]
[1724538342342,0.318273,63850.0,63846.0,0.07805009]
[1724538342551,0.318273,63850.0,63846.0,0.07905009]
[1724538342857,0.318273,63850.0,63846.0,0.002]
[1724538342858,0.078275,63848.0,63846.0,0.002]
[1724538343945,0.078275,63848.0,63846.0,0.001]
[1724538344147,0.078275,63848.0,63846.0,0.002]
[1724538344548,0.078275,63848.0,63847.0,4e-05]
[1724538346150,0.46988,63847.0,63838.0,0.3608]
[1724538346351,0.24,63839.0,63838.0,0.3608]
[1724538346554,0.318286,63839.0,63838.0,0.3608]
[1724538346955,0.318326,63839.0,63838.0,0.3608]
[1724538347557,0.318326,63839.0,63838.0,0.3618]
[1724538348653,0.318326,63839.0,63838.0,0.001]
[1724538349660,0.33039163,63839.0,63838.0,0.001]
[1724538358659,0.69119163,63839.0,63838.0,0.001]
[1724538361556,0.69519163,63839.0,63838.0,0.001]
[1724538361962,0.33439163,63839.0,63838.0,0.001]
[1724538362162,0.078288,63838.0,63836.0,4e-05]
[1724538362459,0.078288,63837.0,63836.0,4e-05]
[1724538362857,0.078328,63837.0,63836.0,4e-05]
[1724538364671,0.080328,63837.0,63836.0,4e-05]
[1724538368665,0.441128,63837.0,63836.0,4e-05]
[1724538368867,0.080328,63837.0,63836.0,4e-05]
[1724538369166,0.441128,63837.0,63836.0,4e-05]
[1724538370464,0.441128,63837.0,63831.0,0.00023501]
[1724538370465,0.078295,63832.0,63831.0,0.00023501]
[1724538370663,0.078295,63832.0,63819.0,0.0468799]
[1724538370664,0.679095,63832.0,63819.0,0.0468799]
[1724538370866,0.24,63824.0,63821.0,0.29535009]
[1724538371474,0.24,63824.0,63821.0,0.22645009]
[1724538371858,0.078313,63817.0,63816.0,0.00023501]
[1724538372060,0.679113,63817.0,63816.0,0.00023501]
[1724538373769,0.680113,63817.0,63816.0,0.00023501]
[1724538374160,0.681113,63817.0,63816.0,0.00023501]
[1724538374768,1.041913,63817.0,63816.0,0.00023501]
[1724538375578,0.320313,63817.0,63816.0,0.00023501]
[1724538375767,1.041913,63817.0,63816.0,0.00023501]
[1724538378473,1.05383481,63817.0,63816.0,0.00023501]
[1724538378767,1.05387481,63817.0,63816.0,0.00023501]
[1724538378979,0.33227481,63817.0,63816.0,0.00023501]
[1724538379175,0.69307481,63817.0,63816.0,0.00023501]
[1724538379975,0.61476181,63817.0,63816.0,0.00023501]
[1724538380168,0.00204,63817.0,63816.0,1.0256791]
[1724538380481,0.24,63828.0,63816.0,0.9474051]
[1724538380677,0.24,63828.0,63821.0,0.3608]
[1724538380979,0.24,63828.0,63822.0,0.1399]
[1724538381180,0.24,63835.0,63827.0,0.3608]
[1724538381572,0.24,63835.0,63827.0,0.98615009]
[1724538381770,0.24,63841.0,63828.0,0.47]
[1724538381973,0.24,63841.0,63835.0,0.3608]
[1724538382171,0.01218212,63842.0,63836.0,0.1443]
[1724538382373,0.3608,63843.0,63836.0,0.1443]
[1724538382579,0.24,63841.0,63836.0,0.22135009]
[1724538384381,0.24,63841.0,63836.0,0.22235009]
[1724538385481,0.241,63841.0,63836.0,0.22335009]
[1724538385884,0.001,63841.0,63838.0,0.078287]
[1724538386181,0.001,63841.0,63839.0,0.54212]
[1724538386386,0.001,63841.0,63840.0,0.46992]
[1724538386784,0.001,63841.0,63840.0,0.94697009]
[1724538387182,0.00023501,63845.0,63840.0,0.94697009]
[1724538387383,0.00023501,63845.0,63844.0,0.3608]
[1724538387782,0.00023501,63845.0,63844.0,0.43785009]
[1724538388886,0.00623501,63845.0,63844.0,0.43785009]
[1724538390086,0.01423501,63845.0,63844.0,0.43785009]
[1724538393687,0.09251301,63845.0,63844.0,0.43785009]
[1724538394001,0.09251301,63845.0,63844.0,0.07705009]
[1724538394294,0.09251301,63845.0,63836.0,0.1443]
[1724538394295,0.01423501,63845.0,63836.0,0.1443]
[1724538394495,0.078289,63836.0,63827.0,0.3235]
[1724538394797,0.078289,63836.0,63835.0,0.43785009]
[1724538395289,0.078329,63836.0,63835.0,0.43785009]
[1724538397183,0.078329,63836.0,63835.0,0.43885009]
[1724538397382,0.078329,63836.0,63835.0,0.44085009]
[1724538399588,0.078329,63836.0,63835.0,0.3638]
[1724538399886,0.078329,63836.0,63835.0,0.003]
[1724538401295,0.078293,63833.0,63827.0,0.01225902]
[1724538401499,0.318293,63833.0,63832.0,0.0772851]
[1724538401995,0.24004,63833.0,63832.0,0.0772851]
[1724538402588,4e-05,63833.0,63832.0,0.0792851]
[1724538402992,4e-05,63833.0,63832.0,0.0802851]
[1724538404293,0.078333,63833.0,63832.0,0.0802851]
[1724538405597,0.09077644,63833.0,63832.0,0.0802851]
[1724538407491,4e-05,63833.0,63832.0,0.0802851]
[1724538407691,4e-05,63833.0,63832.0,1.3893791]
[1724538408497,0.00023501,63845.0,63832.0,0.43563501]
[1724538408693,0.078282,63842.0,63841.0,0.3608]
[1724538410201,0.086282,63842.0,63841.0,0.3608]
[1724538410506,0.008,63842.0,63841.0,0.3608]
[1724538410703,0.01247758,63845.0,63841.0,0.3608]
[1724538410894,0.245,63842.0,63835.0,0.0468799]
[1724538411202,0.078293,63833.0,63832.0,0.36303501]
[1724538411405,0.078293,63833.0,63832.0,0.36103501]
[1724538413910,0.079293,63833.0,63832.0,0.36403501]
[1724538414706,0.078293,63833.0,63832.0,0.36203501]
[1724538414909,0.078293,63833.0,63832.0,0.36403501]
[1724538416910,0.078293,63833.0,63832.0,0.36203501]
[1724538417109,0.078293,63833.0,63832.0,0.36403501]
[1724538417817,0.081293,63833.0,63832.0,0.36203501]
[1724538418113,0.088293,63833.0,63832.0,0.36103501]
[1724538418522,0.091293,63833.0,63832.0,0.36103501]
[1724538419021,0.092293,63833.0,63832.0,0.00023501]
[1724538420606,0.090293,63833.0,63832.0,0.00023501]
[1724538420808,0.168587,63833.0,63832.0,0.00023501]
[1724538421007,0.560293,63833.0,63825.0,0.0468799]
[1724538421213,0.560293,63833.0,63824.0,8e-05]
[1724538421214,0.24,63829.0,63824.0,8e-05]
[1724538421423,0.078304,63825.0,63824.0,8e-05]
[1724538422019,0.078344,63825.0,63824.0,8e-05]
[1724538422212,1.026688,63825.0,63824.0,0.00108]
[1724538422418,1.47088,63825.0,63818.0,0.00023501]
[1724538422615,0.6008,63819.0,63818.0,0.00023501]
[1724538423120,1.149191,63819.0,63813.0,0.00014717]
[1724538423321,0.078328,63805.0,63802.0,0.1159799]
[1724538423511,0.078328,63805.0,63802.0,0.0691]
[1724538424019,0.3608,63808.0,63802.0,0.0691]
[1724538424224,0.00014717,63807.0,63802.0,0.147432]
[1724538424824,0.00014717,63807.0,63802.0,0.1943119]
[1724538425024,0.00014717,63807.0,63802.0,0.147432]
[1724538425424,0.00114717,63807.0,63802.0,0.148432]
[1724538426220,0.00114717,63807.0,63802.0,0.0701]
[1724538428220,0.00214717,63807.0,63802.0,0.0711]
[1724538429128,0.07833,63804.0,63802.0,0.0711]
[1724538430122,0.07833,63804.0,63803.0,0.36076]
[1724538430525,0.07833,63804.0,63802.0,0.07114]
[1724538430730,0.07833,63804.0,63803.0,0.3608]
[1724538431326,0.08033,63804.0,63803.0,0.3608]
[1724538431929,0.07933,63804.0,63803.0,0.3618]
[1724538432129,0.08033,63804.0,63803.0,0.3628]
[1724538433730,0.22063,63804.0,63803.0,0.3628]
[1724538434428,0.078334,63800.0,63799.0,0.00023501]
[1724538434622,0.00014717,63799.0,63785.0,0.3608]
[1724538434822,0.3608,63793.0,63785.0,0.3608]
[1724538435021,0.24,63797.0,63785.0,0.3608]
[1724538435627,0.24023501,63797.0,63785.0,0.36095693]
[1724538435830,0.078343,63793.0,63785.0,0.36095693]
[1724538436028,0.078346,63791.0,63785.0,0.36095693]
[1724538436328,0.078345,63792.0,63785.0,0.36095693]
[1724538436727,0.078346,63791.0,63785.0,0.36095693]
[1724538437029,0.078347,63790.0,63785.0,0.36095693]
[1724538437536,0.078348,63789.0,63785.0,0.36095693]
[1724538438927,0.079348,63789.0,63785.0,0.36095693]
[1724538439128,0.080348,63789.0,63785.0,0.36095693]
[1724538440624,0.078349,63788.0,63785.0,0.36095693]
[1724538441225,0.07835,63787.0,63785.0,0.36095693]
[1724538441829,0.07835,63787.0,63785.0,0.43930993]
[1724538442132,0.001,63788.0,63787.0,0.07835]
[1724538442327,0.001,63788.0,63785.0,1.23127693]
[1724538442328,0.078342,63794.0,63788.0,0.078349]
[1724538442531,0.078342,63794.0,63789.0,0.078348]
[1724538443131,0.00023501,63797.0,63793.0,0.3608]
[1724538443835,0.001,63794.0,63793.0,0.439143]
[1724538444432,0.00023501,63797.0,63793.0,0.439143]
[1724538444741,0.00123501,63797.0,63793.0,0.439143]
[1724538445539,0.00023501,63797.0,63793.0,0.439143]
[1724538445840,0.078339,63796.0,63793.0,0.439143]
[1724538446041,0.078342,63794.0,63793.0,0.3608]
[1724538450238,0.09076313,63794.0,63793.0,0.3608]
[1724538456751,0.078346,63790.0,63789.0,0.4076799]
[1724538457043,0.07849317,63790.0,63789.0,0.3608]
[1724538457239,0.07849317,63790.0,63789.0,0.4076799]
[1724538457434,0.07853317,63790.0,63789.0,0.4076799]
[1724538457634,0.00018717,63790.0,63789.0,0.3608]
[1724538458047,0.00218717,63790.0,63789.0,0.3608]
[1724538458943,0.25255027,63797.0,63796.0,0.078339]
[1724538458944,0.00023501,63797.0,63796.0,0.078339]
[1724538459142,0.00023501,63797.0,63796.0,0.4860469]
[1724538459345,0.00023501,63797.0,63796.0,0.439139]
[1724538459951,0.00123501,63797.0,63796.0,0.439139]
[1724538460654,0.00423501,63797.0,63796.0,0.439139]
[1724538461648,0.00123501,63797.0,63796.0,0.439139]
[1724538461850,0.00223501,63797.0,63796.0,0.440139]
[1724538462241,0.00123501,63797.0,63796.0,0.50168287]
[1724538462440,0.00223501,63797.0,63796.0,0.50268287]
[1724538462946,0.00223501,63797.0,63796.0,0.440139]
[1724538463637,0.00223501,63797.0,63796.0,0.441139]
[1724538463843,0.08057301,63797.0,63796.0,0.3628]
[1724538464049,0.08057301,63797.0,63796.0,0.06460151]
[1724538464348,0.31957301,63797.0,63796.0,0.001]
[1724538464850,0.32057301,63797.0,63796.0,0.002]
[1724538465046,0.31957301,63797.0,63796.0,0.001]
[1724538466540,0.078339,63796.0,63792.0,0.06260151]
[1724538467451,4e-05,63793.0,63792.0,0.06260151]
[1724538467646,4e-05,63793.0,63792.0,0.14094551]
[1724538467847,0.00123501,63797.0,63796.0,0.078339]
[1724538468041,0.00123501,63797.0,63796.0,0.439139]
[1724538468239,0.00023501,63797.0,63796.0,0.439139]
[1724538468639,0.00023501,63797.0,63796.0,0.972319]
[1724538468843,0.10920719,63819.0,63796.0,0.972319]
[1724538468844,0.17197588,63816.0,63797.0,0.078338]
[1724538469049,0.0008,63814.0,63813.0,0.078318]
[1724538469238,0.078315,63816.0,63814.0,0.074]
[1724538469444,0.078315,63816.0,63814.0,0.12091218]
[1724538470048,0.078315,63816.0,63815.0,0.04695218]
[1724538470252,0.078315,63816.0,63815.0,4e-05]
[1724538470955,0.080315,63816.0,63815.0,4e-05]
[1724538471447,0.081315,63816.0,63815.0,4e-05]
[1724538471659,0.082315,63816.0,63815.0,4e-05]
[1724538473053,0.003,63816.0,63815.0,4e-05]
[1724538473243,0.004,63816.0,63815.0,4e-05]
[1724538473945,0.004,63816.0,63815.0,0.36084]
[1724538475650,0.082315,63816.0,63815.0,0.36084]
[1724538477342,0.082315,63816.0,63815.0,4e-05]
[1724538480852,0.952435,63816.0,63815.0,4e-05]
[1724538481650,0.952435,63816.0,63801.0,0.19244518]
[1724538481651,0.078322,63810.0,63801.0,0.11411218]
[1724538481952,0.078333,63801.0,63800.0,0.3608]
[1724538482551,0.078333,63801.0,63791.0,0.078345]
[1724538482552,0.078334,63800.0,63793.0,0.3608]
[1724538483255,4e-05,63794.0,63793.0,0.3608]
[1724538483655,4e-05,63794.0,63793.0,0.439143]
[1724538483856,4e-05,63794.0,63793.0,0.440143]
[1724538484462,4e-05,63794.0,63793.0,1.310423]
[1724538484761,0.00104,63794.0,63793.0,1.311423]
[1724538484960,0.001,63800.0,63793.0,1.311423]
[1724538484961,0.001,63800.0,63799.0,0.078335]
[1724538485165,0.001,63800.0,63799.0,0.439135]
[1724538485665,0.00023501,63803.0,63799.0,0.439135]
[1724538486362,0.00023501,63803.0,63802.0,4e-05]
[1724538487161,0.00023501,63803.0,63802.0,0.06344]
[1724538487958,0.00423501,63803.0,63802.0,0.06344]
[1724538488965,0.00623501,63803.0,63802.0,0.06344]
[1724538489163,0.08456501,63803.0,63802.0,0.06344]
[1724538489660,0.08256501,63803.0,63802.0,0.06344]
[1724538489862,0.08456501,63803.0,63802.0,0.06344]
[1724538490057,0.08456501,63803.0,63802.0,0.42424]
[1724538490456,0.08256501,63803.0,63802.0,0.42424]
[1724538490669,0.07856501,63803.0,63802.0,0.42624]
[1724538491867,0.07856501,63803.0,63802.0,0.504572]
[1724538492167,0.3608,63813.0,63807.0,0.078326]
[1724538492462,0.078321,63811.0,63803.0,0.04680491]
[1724538492865,0.078321,63811.0,63810.0,0.3608]
[1724538494168,0.085321,63811.0,63810.0,0.3608]
[1724538495165,0.085321,63811.0,63810.0,0.3618]
[1724538495378,0.079321,63811.0,63810.0,0.3618]
[1724538497077,0.078321,63811.0,63810.0,0.3618]
[1724538497279,0.080321,63811.0,63810.0,0.3618]
[1724538497681,0.078321,63811.0,63810.0,0.3618]
[1724538497881,0.080321,63811.0,63810.0,0.3618]
[1724538499789,0.082321,63811.0,63810.0,0.3608]
[1724538499989,0.080321,63811.0,63810.0,0.3608]
[1724538500289,0.084321,63811.0,63810.0,0.3608]
[1724538501485,0.078323,63809.0,63807.0,0.04680491]
[1724538502382,0.078323,63809.0,63808.0,0.04676491]
[1724538503185,0.078323,63809.0,63807.0,0.001]
[1724538503391,0.078324,63808.0,63806.0,0.3608]
[1724538504679,0.078324,63808.0,63806.0,0.3618]
[1724538505483,0.078324,63808.0,63806.0,0.001]
[1724538505775,0.078324,63808.0,63807.0,0.001]
[1724538506380,0.078326,63807.0,63806.0,0.3618]
[1724538506585,0.078326,63807.0,63806.0,0.3628]
[1724538506978,0.078326,63807.0,63806.0,0.002]
[1724538507183,0.078326,63807.0,63804.0,0.00023501]
[1724538507184,0.078328,63805.0,63804.0,0.00023501]
[1724538507980,0.078368,63805.0,63804.0,0.00023501]
[1724538509483,0.078368,63805.0,63804.0,0.00123501]
[1724538509682,0.079368,63805.0,63804.0,0.00223501]
[1724538510784,0.09124338,63805.0,63804.0,0.00223501]
[1724538515082,0.09124338,63805.0,63804.0,0.36303501]
[1724538516989,0.09124338,63805.0,63804.0,0.36203501]
[1724538517287,0.09524338,63805.0,63804.0,0.36203501]
[1724538517689,0.09624338,63805.0,63804.0,0.36203501]
[1724538517888,0.09624338,63805.0,63804.0,0.36103501]
[1724538517889,0.01891538,63805.0,63804.0,0.36103501]
[1724538518282,0.00704,63805.0,63804.0,0.36103501]
[1724538518484,0.00704,63805.0,63804.0,0.50196133]
[1724538519289,0.00604,63805.0,63804.0,0.56666133]